bitfinex-derivatives/quotes_ETHF0:USTF0_20230104
["timestamp","ask_amount","ask_price","bid_price","bid_amount"]
[1672832650986,9.40008012,1251.4,1251.3,1.19659311]
[1672832651286,5.19971553,1251.4,1251.3,1.19659311]
[1672832652026,9.40008012,1251.4,1251.3,1.19659311]
[1672832652340,9.40008012,1251.4,1251.2,4.59491874]
[1672832653707,8.20701553,1251.4,1251.3,1.19659311]
[1672832663481,6.60601553,1251.4,1251.3,2.79759311]
[1672832664008,3.0073,1251.4,1251.3,2.79759311]
[1672832666734,5.18971553,1251.5,1251.3,2.79759311]
[1672832667786,8.19701553,1251.5,1251.3,2.79759311]
[1672832668429,12.39738012,1251.5,1251.3,2.79759311]
[1672832670525,3.59871553,1251.4,1251.3,1.601]
[1672832670737,6.09871553,1251.4,1251.3,1.601]
[1672832672530,3.59871553,1251.4,1251.3,1.601]
[1672832673474,3.59871553,1251.4,1251.3,1.59]
[1672832675046,6.09871553,1251.4,1251.3,1.59]
[1672832675675,3.59871553,1251.4,1251.3,1.59]
[1672832676727,6.09871553,1251.4,1251.3,1.59]
[1672832677257,10.29908012,1251.4,1251.3,1.59]
[1672832678724,7.79908012,1251.4,1251.3,1.59]
[1672832678935,3.59871553,1251.4,1251.3,1.59]
[1672832679581,6.09871553,1251.4,1251.3,1.59]
[1672832680311,10.29908012,1251.4,1251.3,1.59]
[1672832680521,6.09871553,1251.4,1251.3,1.59]
[1672832680735,7.79908012,1251.4,1251.3,1.59]
[1672832681572,10.80638012,1251.4,1251.3,1.59]
[1672832682418,6.60601553,1251.4,1251.3,1.59]
[1672832683566,3.59871553,1251.4,1251.3,2.78659311]
[1672832683777,17.38508012,1251.5,1251.3,2.78659311]
[1672832683988,3.59871553,1251.4,1251.3,2.78659311]
[1672832684197,6.09871553,1251.4,1251.3,2.78659311]
[1672832684409,3.59871553,1251.4,1251.3,2.78659311]
[1672832685562,6.09871553,1251.4,1251.3,2.78659311]
[1672832686092,6.09871553,1251.4,1251.3,1.59]
[1672832686925,3.59871553,1251.4,1251.3,1.59]
[1672832687142,3.59871553,1251.4,1251.3,2.78659311]
[1672832687773,3.59871553,1251.4,1251.3,1.59]
[1672832689037,3.59871553,1251.4,1251.3,2.78659311]
[1672832689354,3.59871553,1251.4,1251.3,1.59]
[1672832689668,3.59871553,1251.4,1251.3,2.78659311]
[1672832693460,3.59871553,1251.4,1251.3,1.19659311]
[1672832694712,20.40638012,1251.5,1251.3,1.19659311]
[1672832695447,3.59871553,1251.4,1251.3,1.19659311]
[1672832695657,6.09871553,1251.4,1251.3,1.19659311]
[1672832695874,2.5,1251.4,1251.3,1.19659311]
[1672832696086,20.40638012,1251.5,1251.3,1.19659311]
[1672832696712,3.59871553,1251.4,1251.3,1.19659311]
[1672832696925,6.09871553,1251.4,1251.3,1.19659311]
[1672832697450,3.59871553,1251.4,1251.3,1.19659311]
[1672832703017,3.59871553,1251.4,1251.2,4.58691874]
[1672832705334,3.59871553,1251.4,1251.2,2.78959311]
[1672832705537,3.59871553,1251.3,1251.2,2.78959311]
[1672832705752,6.09871553,1251.3,1251.2,2.78959311]
[1672832706700,2.5,1251.3,1251.2,2.78959311]
[1672832706911,9.29908012,1251.4,1251.2,2.78959311]
[1672832707436,3.59871553,1251.3,1251.2,2.78959311]
[1672832707644,6.09871553,1251.3,1251.2,2.78959311]
[1672832708384,13.30638012,1251.4,1251.2,2.78959311]
[1672832708906,3.59871553,1251.3,1251.2,2.78959311]
[1672832709119,5.09871553,1251.3,1251.2,2.78959311]
[1672832710592,3.59871553,1251.3,1251.2,2.78959311]
[1672832711744,13.30638012,1251.4,1251.2,2.78959311]
[1672832712899,9.10601553,1251.4,1251.2,4.58691874]
[1672832713112,9.10601553,1251.4,1251.2,2.78959311]
[1672832713322,13.30638012,1251.4,1251.2,2.78959311]
[1672832713535,13.30638012,1251.4,1251.3,1.599]
[1672832713744,9.10601553,1251.4,1251.3,1.599]
[1672832713953,8.10601553,1251.4,1251.3,1.599]
[1672832718055,6.60601553,1251.4,1251.3,1.599]
[1672832719528,9.10601553,1251.4,1251.3,1.599]
[1672832719947,6.60601553,1251.4,1251.3,1.599]
[1672832721526,9.10601553,1251.4,1251.3,1.599]
[1672832722156,6.60601553,1251.4,1251.3,1.599]
[1672832722996,9.10601553,1251.4,1251.3,1.599]
[1672832723410,6.60601553,1251.4,1251.2,2.99391874]
[1672832723622,8.20501553,1251.4,1251.2,4.58691874]
[1672832724153,10.70501553,1251.4,1251.2,4.58691874]
[1672832725315,8.20501553,1251.4,1251.2,4.58691874]
[1672832726050,10.70501553,1251.4,1251.2,4.58691874]
[1672832726259,14.90538012,1251.4,1251.2,4.58691874]
[1672832726999,12.40538012,1251.4,1251.2,4.58691874]
[1672832727311,14.90538012,1251.4,1251.2,4.58691874]
[1672832727521,9.39808012,1251.4,1251.2,4.58691874]
[1672832727733,12.40538012,1251.4,1251.2,4.58691874]
[1672832727936,14.90538012,1251.4,1251.2,4.58691874]
[1672832729095,12.40538012,1251.4,1251.2,4.58691874]
[1672832729299,8.20501553,1251.4,1251.3,1.19659311]
[1672832730151,8.20501553,1251.4,1251.2,4.58691874]
[1672832730893,10.70501553,1251.4,1251.2,4.58691874]
[1672832731092,8.20501553,1251.4,1251.2,4.58691874]
[1672832731938,8.20501553,1251.4,1251.2,2.99391874]
[1672832732148,4.3724,1251.3,1251.1,2.9874674]
[1672832732353,17.79901553,1251.2,1251.1,1.79732563]
[1672832732567,17.79901553,1251.2,1250.9,1.79732563]
[1672832732568,14.2003,1251.2,1250.9,1.79732563]
[1672832732768,14.2003,1251.2,1250.9,4.29732563]
[1672832732769,4.6043,1251.0,1250.9,4.29732563]
[1672832733197,6.1043,1251.0,1250.9,4.29732563]
[1672832733716,1.597,1251.0,1250.9,4.29732563]
[1672832734142,4.6043,1251.0,1250.9,4.29732563]
[1672832734563,4.6043,1251.0,1250.9,2.5]
[1672832734986,4.6043,1251.0,1250.9,4.29732563]
[1672832735187,4.6043,1251.0,1250.9,2.5]
[1672832735401,1.597,1251.0,1250.9,2.5]
[1672832735822,1.597,1251.0,1250.8,5.89132563]
[1672832737197,3.0073,1250.9,1250.8,1.594]
[1672832741505,4.5073,1250.9,1250.8,1.594]
[1672832742237,1.5,1250.9,1250.8,1.594]
[1672832742447,4.5073,1250.9,1250.8,1.594]
[1672832743501,4.5073,1250.9,1250.8,1.601]
[1672832745383,3.0073,1250.9,1250.8,1.601]
[1672832745596,1.601,1251.0,1250.8,1.601]
[1672832746659,4.6083,1251.0,1250.8,1.601]
[1672832748139,1.601,1251.0,1250.8,1.601]
[1672832748449,4.6083,1251.0,1250.8,1.601]
[1672832748978,1.5,1250.9,1250.8,1.601]
[1672832750972,4.6083,1251.0,1250.8,1.601]
[1672832751290,1.5,1250.9,1250.8,1.601]
[1672832753502,3.101,1250.9,1250.7,9.091]
[1672832754443,1.601,1250.9,1250.7,9.091]
[1672832762648,6.60601553,1251.2,1250.8,9.59862563]
[1672832762957,3.0073,1251.2,1251.1,1.594]
[1672832763173,2.5,1251.3,1251.1,1.594]
[1672832764532,18.2973,1251.4,1251.1,1.594]
[1672832764743,2.5,1251.3,1251.1,1.594]
[1672832769276,18.2973,1251.4,1251.1,1.594]
[1672832769488,2.5,1251.3,1251.1,1.594]
[1672832773469,2.5,1251.3,1251.0,8.0073]
[1672832773470,2.5,1251.3,1251.2,1.601]
[1672832776421,21.89601553,1251.4,1251.2,1.601]
[1672832776731,2.5,1251.3,1251.2,1.601]
[1672832779149,5.5073,1251.3,1251.2,1.601]
[1672832785882,2.5,1251.3,1251.2,1.601]
[1672832786091,5.5073,1251.3,1251.2,1.601]
[1672832786940,7.1073,1251.3,1251.0,6.596]
[1672832787247,1.601,1251.0,1250.8,6.78909392]
[1672832787461,1.601,1250.9,1250.8,5.0]
[1672832787668,4.6083,1250.9,1250.8,5.0]
[1672832788092,4.6083,1250.9,1250.6,13.2765281]
[1672832788093,4.5983,1250.9,1250.6,13.2765281]
[1672832788296,4.59544304,1250.9,1250.6,13.2765281]
[1672832788508,4.59544304,1250.9,1250.7,4.28909392]
[1672832788827,4.59544304,1250.9,1250.7,1.78909392]
[1672832791448,4.59544304,1250.9,1250.6,13.2765281]
[1672832792094,4.59544304,1250.9,1250.6,10.88009392]
[1672832794199,1.601,1250.8,1250.6,10.88009392]
[1672832797237,1.601,1250.8,1250.6,9.091]
[1672832797451,1.601,1250.8,1250.6,10.88009392]
[1672832799135,1.601,1250.8,1250.6,9.091]
[1672832799557,1.601,1250.8,1250.6,10.88009392]
[1672832802705,4.6083,1250.8,1250.6,10.88009392]
[1672832803447,3.0073,1250.8,1250.6,10.88009392]
[1672832804071,1.591,1250.9,1250.6,10.88009392]
[1672832804275,1.591,1250.9,1250.6,10.89009392]
[1672832808493,4.5983,1250.9,1250.6,10.89009392]
[1672832809650,7.58609579,1250.9,1250.6,10.89009392]
[1672832813434,1.598,1250.8,1250.6,10.88809392]
[1672832816477,1.598,1250.8,1250.7,1.601]
[1672832816690,3.0073,1251.2,1250.8,1.90887651]
[1672832817005,3.0073,1251.2,1251.1,1.588]
[1672832817216,2.5,1251.2,1251.1,1.588]
[1672832817429,5.5073,1251.2,1251.1,1.588]
[1672832817836,2.5,1251.2,1251.1,1.588]
[1672832818895,13.689,1251.3,1251.1,1.588]
[1672832819107,20.34551553,1251.4,1251.1,1.588]
[1672832819320,2.5,1251.3,1251.1,1.588]
[1672832822156,2.5,1251.3,1251.2,1.594]
[1672832829403,5.5073,1251.3,1251.2,1.594]
[1672832832241,3.0073,1251.3,1251.2,1.594]
[1672832832875,5.5073,1251.3,1251.2,1.594]
[1672832833084,3.0073,1251.3,1251.2,1.594]
[1672832833609,5.5073,1251.3,1251.2,1.594]
[1672832838659,3.0073,1251.3,1251.2,1.594]
[1672832838864,1.601,1251.4,1251.2,1.594]
[1672832839079,16.6963,1251.6,1251.3,3.202]
[1672832839080,15.29,1251.6,1251.3,3.202]
[1672832839398,1.601,1251.6,1251.4,4.101]
[1672832839598,7.1083,1251.6,1251.5,1.0]
[1672832840022,12.6083,1251.6,1251.5,1.0]
[1672832840649,15.1083,1251.6,1251.4,4.101]
[1672832844236,12.6083,1251.6,1251.4,4.101]
[1672832845081,15.1083,1251.6,1251.4,4.101]
[1672832847086,15.1083,1251.6,1251.4,1.601]
[1672832847302,1.5,1251.5,1251.4,1.601]
[1672832847609,1.5,1251.5,1251.4,2.601]
[1672832849084,1.5,1251.5,1251.4,1.601]
[1672832853390,4.48272769,1251.5,1251.4,1.601]
[1672832854948,3.0073,1251.5,1251.4,1.601]
[1672832855159,7.49002769,1251.5,1251.4,1.601]
[1672832861677,5.99002769,1251.5,1251.4,1.601]
[1672832862623,7.49002769,1251.5,1251.4,1.601]
[1672832863153,4.48272769,1251.5,1251.4,1.601]
[1672832863358,5.99002769,1251.5,1251.4,1.601]
[1672832863570,5.99002769,1251.5,1251.4,1.592]
[1672832863781,4.5073,1251.5,1251.4,1.592]
[1672832863994,3.0073,1251.5,1251.4,1.592]
[1672832864509,5.99636521,1251.5,1251.4,1.592]
[1672832865884,5.99636521,1251.5,1251.4,1.58430842]
[1672832866201,7.49636521,1251.5,1251.4,1.58430842]
[1672832866413,7.49659374,1251.5,1251.4,1.58430842]
[1672832867361,4.5073,1251.5,1251.4,1.58430842]
[1672832869882,3.0073,1251.5,1251.4,1.58430842]
[1672832871560,15.69971553,1251.6,1251.4,1.58430842]
[1672832871772,3.0073,1251.5,1251.4,1.58430842]
[1672832871982,1.5,1251.5,1251.4,1.58430842]
[1672832872406,4.5073,1251.5,1251.4,1.58430842]
[1672832873658,8.10601553,1251.5,1251.4,1.58430842]
[1672832873976,4.5073,1251.5,1251.4,1.58430842]
[1672832875560,8.10601553,1251.5,1251.4,1.58430842]
[1672832877876,5.09871553,1251.5,1251.4,1.58430842]
[1672832878188,8.10601553,1251.5,1251.4,1.58430842]
[1672832879449,12.30638012,1251.5,1251.4,1.58430842]
[1672832880188,8.10601553,1251.5,1251.4,1.58430842]
[1672832881450,5.09871553,1251.5,1251.4,2.77583804]
[1672832881765,8.10601553,1251.5,1251.4,2.77583804]
[1672832882816,5.09871553,1251.5,1251.4,2.77583804]
[1672832883131,6.60601553,1251.5,1251.4,1.58430842]
[1672832883340,6.60601553,1251.5,1251.4,2.77583804]
[1672832883543,8.20301553,1251.5,1251.4,1.19152962]
[1672832884917,13.90338012,1251.5,1251.4,1.19152962]
[1672832885338,9.70301553,1251.5,1251.4,1.19152962]
[1672832885555,12.40338012,1251.5,1251.4,1.19152962]
[1672832887862,12.40338012,1251.5,1251.3,4.58354906]
[1672832888071,13.90338012,1251.5,1251.4,1.19152962]
[1672832888280,13.90338012,1251.5,1251.4,2.19152962]
[1672832888602,12.40338012,1251.5,1251.4,2.19152962]
[1672832888806,8.20301553,1251.5,1251.4,2.19152962]
[1672832891440,5.19571553,1251.5,1251.4,2.19152962]
[1672832891651,8.20301553,1251.5,1251.4,2.19152962]
[1672832893117,8.20301553,1251.5,1251.4,1.19152962]
[1672832893749,12.40338012,1251.5,1251.4,1.19152962]
[1672832895537,8.20301553,1251.5,1251.4,1.19152962]
[1672832897326,12.40338012,1251.5,1251.4,1.19152962]
[1672832897530,9.39608012,1251.5,1251.4,1.19152962]
[1672832897961,12.40338012,1251.5,1251.4,1.19152962]
[1672832898279,21.90338012,1251.5,1251.4,1.19152962]
[1672832898473,20.40338012,1251.5,1251.4,1.19152962]
[1672832898901,20.40338012,1251.5,1251.3,4.58354906]
[1672832899118,20.40338012,1251.5,1251.4,1.19152962]
[1672832899327,20.40338012,1251.5,1251.4,2.19152962]
[1672832900688,16.20301553,1251.5,1251.4,2.19152962]
[1672832901216,20.40338012,1251.5,1251.4,2.19152962]
[1672832902059,20.40338012,1251.5,1251.4,1.19152962]
[1672832903111,16.80466459,1251.5,1251.4,1.19152962]
[1672832903428,15.20766459,1251.5,1251.4,1.19152962]
[1672832904155,12.20036459,1251.5,1251.4,1.19152962]
[1672832904364,18.80446536,1251.5,1251.4,1.19152962]
[1672832904998,15.20766459,1251.5,1251.4,1.19152962]
[1672832906999,18.80442185,1251.5,1251.4,1.19152962]
[1672832907522,14.60405726,1251.5,1251.4,1.19152962]
[1672832909932,11.59675726,1251.5,1251.4,1.19152962]
[1672832910144,14.60405726,1251.5,1251.4,1.19152962]
[1672832911309,14.60405726,1251.5,1251.4,2.19152962]
[1672832912466,14.60405726,1251.5,1251.4,1.19152962]
[1672832913620,16.19605726,1251.5,1251.4,1.19152962]
[1672832917195,13.18875726,1251.5,1251.4,1.19152962]
[1672832917407,16.19605726,1251.5,1251.4,1.19152962]
[1672832920870,20.39642185,1251.5,1251.4,1.19152962]
[1672832922138,17.38912185,1251.5,1251.4,1.19152962]
[1672832922346,16.19605726,1251.5,1251.4,1.19152962]
[1672832924449,16.19605726,1251.5,1251.3,3.39201944]
[1672832924450,20.39642185,1251.5,1251.3,4.58354906]
[1672832924764,6.09675726,1251.4,1251.3,4.58354906]
[1672832925178,6.09675726,1251.4,1251.3,6.18454906]
[1672832926552,2.5,1251.4,1251.3,6.18454906]
[1672832926754,3.59675726,1251.4,1251.3,6.18454906]
[1672832926965,2.5,1251.4,1251.3,6.18454906]
[1672832927589,2.5,1251.4,1251.3,4.99301944]
[1672832927805,14.60405726,1251.5,1251.3,4.99301944]
[1672832928015,14.60405726,1251.5,1251.4,2.79766645]
[1672832928226,18.80442185,1251.5,1251.4,3.79766645]
[1672832930659,18.80442185,1251.5,1251.4,2.601]
[1672832930962,18.80442185,1251.5,1251.4,1.601]
[1672832931173,15.79712185,1251.5,1251.4,1.601]
[1672832931383,18.80442185,1251.5,1251.4,1.601]
[1672832931590,14.60405726,1251.5,1251.4,1.601]
[1672832931904,14.60405726,1251.5,1251.4,2.79766645]
[1672832932113,14.60405726,1251.5,1251.4,1.601]
[1672832932324,18.80442185,1251.5,1251.4,1.601]
[1672832932541,18.80442185,1251.5,1251.4,2.79766645]
[1672832933699,15.79712185,1251.5,1251.4,2.79766645]
[1672832934334,15.79712185,1251.5,1251.4,1.601]
[1672832934335,18.80442185,1251.5,1251.4,1.601]
[1672832934645,18.80442185,1251.5,1251.4,2.79416345]
[1672832935380,18.80442185,1251.5,1251.4,1.597497]
[1672832937164,18.80366762,1251.5,1251.4,1.597497]
[1672832938220,15.79636762,1251.5,1251.4,1.597497]
[1672832938532,18.80366762,1251.5,1251.4,1.597497]
[1672832939375,15.79636762,1251.5,1251.4,1.597497]
[1672832939588,18.80366762,1251.5,1251.4,1.597497]
[1672832943894,15.79636762,1251.5,1251.4,1.597497]
[1672832944103,18.80366762,1251.5,1251.4,1.597497]
[1672832944627,15.20766459,1251.5,1251.4,1.597497]
[1672832944837,18.80350993,1251.5,1251.4,1.597497]
[1672832945051,15.20766459,1251.5,1251.4,1.597497]
[1672832945259,18.80345907,1251.5,1251.4,1.597497]
[1672832946417,15.79615907,1251.5,1251.4,1.597497]
[1672832946736,18.80345907,1251.5,1251.4,1.597497]
[1672832949570,15.20766459,1251.5,1251.4,1.597497]
[1672832949892,18.80346577,1251.5,1251.4,1.597497]
[1672832951043,18.80358832,1251.5,1251.4,1.597497]
[1672832951670,15.79628832,1251.5,1251.4,1.597497]
[1672832951880,18.80358832,1251.5,1251.4,1.597497]
[1672832952617,15.20766459,1251.5,1251.4,1.597497]
[1672832955456,12.20036459,1251.5,1251.4,1.597497]
[1672832955668,17.70766459,1251.5,1251.4,1.597497]
[1672832956087,14.70036459,1251.5,1251.4,1.597497]
[1672832956403,17.70766459,1251.5,1251.4,1.597497]
[1672832956615,12.20036459,1251.5,1251.4,1.597497]
[1672832956813,15.20766459,1251.5,1251.4,1.597497]
[1672832957869,12.20036459,1251.5,1251.4,1.597497]
[1672832958078,17.70766459,1251.5,1251.4,1.597497]
[1672832958396,14.70036459,1251.5,1251.4,1.597497]
[1672832958607,15.20766459,1251.5,1251.4,1.597497]
[1672832961032,12.20036459,1251.5,1251.4,1.597497]
[1672832961343,17.70766459,1251.5,1251.4,1.597497]
[1672832961768,14.70036459,1251.5,1251.4,1.597497]
[1672832961977,17.70766459,1251.5,1251.4,1.597497]
[1672832962608,14.70036459,1251.5,1251.4,1.597497]
[1672832962818,17.70766459,1251.5,1251.4,1.597497]
[1672832963446,17.70766459,1251.5,1251.3,4.58868589]
[1672832963659,6.60395341,1251.4,1251.3,4.58868589]
[1672832963871,8.10395341,1251.4,1251.3,4.58868589]
[1672832965131,6.60395341,1251.4,1251.3,4.58868589]
[1672832965342,8.10395341,1251.4,1251.3,4.58868589]
[1672832965758,5.09665341,1251.4,1251.3,4.58868589]
[1672832967236,3.59665341,1251.4,1251.3,4.58868589]
[1672832971223,3.59665341,1251.4,1251.3,3.39201944]
[1672832972592,5.09665341,1251.4,1251.3,3.39201944]
[1672832973222,3.59665341,1251.4,1251.3,4.58899639]
[1672832973537,3.59665341,1251.4,1251.3,4.57799639]
[1672832974480,6.60395341,1251.4,1251.3,4.57799639]
[1672832975640,3.59665341,1251.4,1251.3,4.57799639]
[1672832975840,6.60395341,1251.4,1251.3,3.38101944]
[1672832977423,3.59665341,1251.4,1251.3,3.38101944]
[1672832978265,20.395318,1251.5,1251.3,3.38101944]
[1672832978474,20.395318,1251.5,1251.4,1.19685098]
[1672832980155,20.395318,1251.5,1251.3,4.57787042]
[1672832980359,20.395318,1251.5,1251.4,1.19685098]
[1672832980568,17.388018,1251.5,1251.4,1.19685098]
[1672832980780,20.395318,1251.5,1251.4,1.19685098]
[1672832981416,17.388018,1251.5,1251.4,1.19685098]
[1672832981626,20.395318,1251.5,1251.4,1.19685098]
[1672832981827,17.388018,1251.5,1251.4,1.19685098]
[1672832982041,20.395318,1251.5,1251.4,1.19685098]
[1672832983095,16.19495341,1251.5,1251.4,1.19685098]
[1672832983509,20.395318,1251.5,1251.4,1.19685098]
[1672832984883,17.388018,1251.5,1251.4,1.19685098]
[1672832985408,16.19495341,1251.5,1251.4,1.19685098]
[1672832992658,16.19495341,1251.5,1251.3,4.57787042]
[1672832992965,16.19495341,1251.5,1251.4,2.19685098]
[1672832997710,12.5983,1251.5,1251.4,2.19685098]
[1672832998862,9.591,1251.5,1251.4,2.19685098]
[1672833000852,9.591,1251.5,1251.4,3.98787042]
[1672833001173,9.591,1251.5,1251.4,2.98787042]
[1672833001383,9.591,1251.5,1251.4,1.19685098]
[1672833002330,9.591,1251.5,1251.4,2.19685098]
[1672833002750,9.591,1251.5,1251.4,1.19685098]
[1672833003485,8.0,1251.5,1251.4,1.19685098]
[1672833004007,11.59665341,1251.5,1251.4,1.19685098]
[1672833008854,8.0,1251.5,1251.4,1.19685098]
[1672833009064,8.0,1251.5,1251.4,2.19685098]
[1672833009374,8.0,1251.5,1251.4,3.98787042]
[1672833011264,16.20495341,1251.6,1251.4,5.58087042]
[1672833011583,11.59665341,1251.6,1251.5,2.78485098]
[1672833013267,14.60395341,1251.6,1251.5,2.78485098]
[1672833014102,11.0073,1251.6,1251.5,2.78485098]
[1672833014627,14.60395341,1251.6,1251.5,2.78485098]
[1672833017466,14.60395341,1251.6,1251.5,1.588]
[1672833017676,11.0073,1251.6,1251.5,2.78485098]
[1672833018418,8.0,1251.6,1251.5,2.78485098]
[1672833018725,11.0073,1251.6,1251.5,2.78485098]
[1672833019041,11.59665341,1251.6,1251.5,2.78485098]
[1672833019251,11.0073,1251.6,1251.5,2.78485098]
[1672833021358,8.0,1251.6,1251.5,2.78485098]
[1672833023562,8.0,1251.6,1251.5,2.79085098]
[1672833033762,8.0,1251.6,1251.5,1.594]
[1672833033973,11.59665341,1251.6,1251.5,2.79085098]
[1672833034382,14.60395341,1251.6,1251.5,2.79085098]
[1672833041541,14.60395341,1251.6,1251.5,1.594]
[1672833041962,14.60395341,1251.6,1251.5,2.79085098]
[1672833042489,11.59665341,1251.6,1251.5,2.79085098]
[1672833042803,14.60395341,1251.6,1251.5,2.79085098]
[1672833047001,11.59665341,1251.6,1251.5,2.79085098]
[1672833047221,14.60395341,1251.6,1251.5,2.79085098]
[1672833051844,18.804318,1251.6,1251.5,2.79085098]
[1672833053098,15.20766459,1251.6,1251.5,2.79085098]
[1672833053311,14.60398548,1251.6,1251.5,2.79085098]
[1672833053946,11.59668548,1251.6,1251.5,2.79085098]
[1672833061828,14.60398548,1251.6,1251.5,2.79085098]
[1672833063618,11.59668548,1251.6,1251.5,2.79085098]
[1672833066557,14.60398548,1251.6,1251.5,2.79085098]
[1672833067403,11.59668548,1251.6,1251.5,2.79085098]
[1672833067930,14.60398548,1251.6,1251.5,2.79085098]
[1672833069820,18.80435007,1251.6,1251.5,2.79085098]
[1672833070975,2.50759092,1251.5,1251.4,2.79085098]
[1672833071291,6.1042764,1251.5,1251.4,2.79085098]
[1672833074241,0.00759092,1251.5,1251.4,4.58187042]
[1672833077185,0.00759092,1251.5,1251.4,3.38501944]
[1672833083623,0.00759092,1251.5,1251.4,3.39201944]
[1672833088564,3.00329283,1251.5,1251.4,3.39201944]
[1672833088886,3.00329283,1251.5,1251.4,5.78004536]
[1672833089291,3.00329283,1251.5,1251.4,3.39201944]
[1672833089721,0.00759092,1251.5,1251.4,3.39201944]
[1672833089929,3.00324432,1251.5,1251.4,3.39201944]
[1672833091609,3.00324432,1251.5,1251.4,5.78004536]
[1672833092768,3.00324432,1251.5,1251.4,3.39201944]
[1672833092970,3.00324432,1251.5,1251.4,5.78004536]
[1672833093290,3.00324432,1251.5,1251.4,3.39201944]
[1672833100348,0.00759092,1251.5,1251.4,3.39201944]
[1672833100558,0.00759092,1251.5,1251.4,4.58719226]
[1672833101078,0.00759092,1251.5,1251.4,2.79617282]
[1672833101492,3.01489092,1251.5,1251.4,2.79617282]
[1672833101706,3.01489092,1251.5,1251.4,4.58719226]
[1672833102980,6.01014006,1251.5,1251.4,3.39201944]
[1672833103702,3.00284006,1251.5,1251.4,3.39201944]
[1672833106127,0.00759092,1251.5,1251.4,3.39201944]
[1672833108328,3.00285298,1251.5,1251.4,3.39201944]
[1672833111177,3.00285298,1251.5,1251.4,5.78004536]
[1672833112848,3.00285298,1251.5,1251.4,3.39201944]
[1672833113487,3.00285298,1251.5,1251.4,5.77504536]
[1672833113901,3.00285298,1251.5,1251.4,3.38701944]
[1672833115168,3.00285298,1251.5,1251.4,5.77504536]
[1672833117989,3.00285298,1251.5,1251.4,3.38701944]
[1672833117990,0.00759092,1251.5,1251.4,3.38701944]
[1672833120307,3.00382619,1251.5,1251.4,3.98402592]
[1672833122824,3.00382619,1251.5,1251.4,5.77711941]
[1672833123447,3.00382619,1251.5,1251.4,3.98402592]
[1672833124084,3.00382619,1251.5,1251.4,5.77701303]
[1672833124604,3.00382619,1251.5,1251.4,3.98402592]
[1672833125020,3.00382619,1251.5,1251.4,3.97602592]
[1672833125236,2.99587885,1251.7,1251.4,15.80322389]
[1672833125437,7.79705007,1252.1,1251.6,6.0073]
[1672833125653,7.38166485,1252.1,1252.0,8.0073]
[1672833125859,4.52974979,1252.2,1252.0,8.0073]
[1672833126069,9.998328,1252.7,1252.1,8.70578234]
[1672833126279,3.0073,1252.5,1252.4,1.599]
[1672833126701,5.5073,1252.5,1252.4,4.099]
[1672833126907,2.5,1252.5,1252.4,5.7]
[1672833127228,8.0,1252.6,1252.4,8.6963]
[1672833127428,13.689,1253.0,1252.5,12.5790155]
[1672833127639,4.1887,1253.4,1252.9,3.0073]
[1672833127859,1.1814,1253.4,1252.9,3.0073]
[1672833128067,2.5,1253.3,1253.0,2.5]
[1672833128271,6.501028,1254.0,1253.3,4.101]
[1672833128479,8.0,1253.8,1253.4,1.601]
[1672833128691,3.0073,1253.5,1253.2,0.08997958]
[1672833128903,1.111,1254.0,1253.0,17.48783327]
[1672833128904,3.0073,1253.3,1253.0,17.48783327]
[1672833129117,3.0073,1253.1,1252.8,10.58164207]
[1672833129326,3.0073,1253.0,1252.6,12.17964207]
[1672833129530,1.5,1253.0,1252.9,1.59]
[1672833129737,4.5073,1253.0,1252.9,1.59]
[1672833130383,4.5073,1253.0,1252.8,1.599]
[1672833130584,8.0,1252.8,1252.4,1.59]
[1672833130796,4.5993,1252.7,1252.4,1.59]
[1672833131111,4.5993,1252.7,1252.3,4.101]
[1672833131314,4.5993,1252.7,1252.4,2.5]
[1672833133643,3.0073,1252.7,1252.5,1.594]
[1672833138048,2.5,1252.6,1252.5,1.594]
[1672833140365,3.0073,1252.7,1252.5,1.594]
[1672833140566,2.5,1252.6,1252.5,1.594]
[1672833141411,2.5,1252.6,1252.5,1.585]
[1672833142677,2.5,1252.6,1252.4,1.593]
[1672833143100,3.0073,1252.5,1252.4,1.593]
[1672833144273,2.5,1252.6,1252.4,1.593]
[1672833145208,3.0073,1252.7,1252.5,1.598]
[1672833145419,15.189,1253.0,1252.6,3.196]
[1672833145632,1.5,1253.0,1252.8,1.598]
[1672833145844,2.5,1253.0,1252.8,1.598]
[1672833147102,12.6013,1253.1,1252.9,1.59]
[1672833147103,11.0073,1253.1,1252.9,1.59]
[1672833147315,2.5,1253.0,1252.9,1.59]
[1672833150671,2.5,1253.0,1252.8,1.589]
[1672833152251,3.0073,1253.1,1252.9,1.594]
[1672833152458,3.0073,1253.3,1253.0,1.59]
[1672833152675,3.0073,1253.3,1253.2,1.598]
[1672833152885,5.5073,1253.3,1253.2,1.598]
[1672833158973,5.5073,1253.3,1253.1,1.59]
[1672833159182,1.598,1253.2,1253.0,1.598]
[1672833159387,3.0073,1253.1,1253.0,1.598]
[1672833159605,1.598,1253.2,1253.0,1.598]
[1672833160131,3.0073,1253.1,1253.0,1.598]
[1672833160764,1.598,1253.2,1253.0,1.598]
[1672833161389,3.0073,1253.1,1253.0,1.598]
[1672833162444,1.598,1253.2,1253.0,1.598]
[1672833163707,3.0073,1253.1,1253.0,1.598]
[1672833164536,4.6053,1253.1,1252.9,1.1930155]
[1672833165699,12.6053,1253.1,1252.8,4.58053876]
[1672833166017,4.5893,1252.9,1252.8,1.1930155]
[1672833166227,4.5893,1252.9,1252.7,2.98253876]
[1672833166644,4.5893,1252.9,1252.8,1.1930155]
[1672833167482,4.5893,1252.9,1252.7,5.48253876]
[1672833168225,4.5893,1252.9,1252.8,1.1930155]
[1672833169170,4.5893,1252.9,1252.7,5.48253876]
[1672833172326,4.5893,1252.9,1252.7,3.6930155]
[1672833173783,4.5893,1252.9,1252.7,1.1930155]
[1672833174110,4.5893,1252.9,1252.6,7.08053876]
[1672833174319,3.0073,1252.7,1252.6,1.1930155]
[1672833175262,3.0073,1252.7,1252.5,5.48253876]
[1672833177145,3.0073,1252.7,1252.5,1.1930155]